[Event "AI Cup Div-2 2023"]
[Site "Online"]
[Date "2023.09.26"]
[Round "2.2"]
[White "Dominguez Perez, Leinier"]
[Black "Andreikin, Dmitry"]
[Result "0-1"]
[ECO "C10"]
[WhiteElo "2745"]
[BlackElo "2729"]
[Annotator "TA"]
[PlyCount "98"]
[EventDate "2023.09.18"]
[EventType "k.o."]
[EventCountry "NET"]
[SourceTitle "playchess.com"]
[Source "ChessBase"]
[SourceQuality "1"]
[TimeControl "900+3"]

{[%evp 10,98,33,26,47,41,40,45,37,25,20,20,25,21,16,10,20,6,0,0,0,0,0,-47,-33,-103,-110,-105,-104,-83,-92,-188,-174,-356,-181,-266,-268,-389,-394,-361,-364,-299,-330,-395,-393,-354,-177,-278,-270,-247,-248,-362,-350,-318,-318,-318,-318,-247,-212,-194,-190,-223,-204,-214,-170,-217,-204,-188,-195,-279,-260,-579,-579,-560,-404,-754,-670,-5289,-4632,-1945,-1864,-1829,-1677,-1049,-1049,-29981,-29982,-29982,-29983,-29983,-29984]} 1. e4 {[%emt 0:00:03][%cal Be2e4,Be4e5][%mdl 32]} e6 {[%emt 0:00:04]} 2. d4 {[%emt 0:00:02]} d5 {[%emt 0:00:02]} 3. Nc3 {[%emt 0:00:00][%cal Bb1c3,Bc3e2,Be2g3][%mdl 32]} Nc6 {[%emt 0:00:01]} 4. Nf3 {[%emt 0:00:25]} Nf6 {[%emt 0:00:04]} 5. e5 {[%emt 0:00:01]} Ne4 {[%emt 0:00:01]} 6. Ne2 {[%emt 0:00:01]} Bd7 {[%emt 0:00:17] C10: French with 3 Nc3: Unusual Black 3rd moves and 3...dxe4.} 7. Ng3 {[%emt 0:00:17]} f5 {[%emt 0:00:15]} 8. exf6 {[%emt 0:01:23]} Nxf6 {[%emt 0:00:07] [#] White is slightly better.} 9. Ne5 $146 {[%emt 0:02:11]} ({Predecessor:} 9. Bd3 Bd6 10. O-O O-O 11. Re1 h6 12. c3 Ne7 13. Ne5 c5 14. Nh5 cxd4 15. cxd4 Bxe5 16. Rxe5 {½-½ Degraeve,J (2540)-Kovacevic,V (2492) Mitropa Cup 20st 2000 (5)}) 9... Bd6 {[%emt 0:03:43]} 10. f4 {[%emt 0:00:03]} Ne7 {[%emt 0:01:21]} 11. Bd3 {[%emt 0:00:21]} c5 {[%emt 0:00:21]} 12. dxc5 {[%emt 0:03:18]} Bxc5 {[%emt 0:00:25]} 13. Qe2 {[%emt 0:00:03]} (13. Nh5 $5 {[%cal Rh5f6]} O-O 14. Nxf6+ {[%mdl 64] Remove Defender} Rxf6 15. Qh5 $11) 13... Qb6 {[%emt 0:01:12]} 14. a4 {[%emt 0:01:43][%cal Ba2a4,Ba4a5][%mdl 32]} O-O {[%emt 0:00:41]} 15. a5 {[%emt 0:00:29]} Qc7 {[%emt 0:00:04]} 16. Bd2 {[%emt 0:01:04]} (16. Be3 $11 {is superior.} Bxe3 17. Qxe3) 16... Nc6 $15 {[%emt 0:00:31]} 17. Nxc6 {[%emt 0:01:51]} (17. Nxd7 $15 Qxd7 18. Bc3) 17... bxc6 $17 {[%emt 0:00:04] Black converts the advantage convincingly.} ({Much weaker is} 17... Qxc6 $6 18. h3 $15) 18. b4 {[%emt 0:00:01]} Bd6 {[%emt 0:00:44] ...e5 would be deadly.} 19. O-O {[%emt 0:00:24]} e5 {[%emt 0:00:09][%cal Re5f4]} 20. fxe5 {[%emt 0:00:03]} (20. Nh5 $17) 20... Bxe5 $19 {[%emt 0:00:04] White must now prevent ...Rae8.} 21. Rae1 $2 {[%emt 0:00:04]} (21. c3) 21... Rae8 {[%emt 0:00:12]} (21... Ng4 $142 22. Bxh7+ Kxh7) 22. Qd1 {[%emt 0:01:16] [#]} ({Much worse is} 22. Qe3 Ng4 23. Qc5 Rxf1+ 24. Bxf1 Rf8) (22. Qf2 $142) 22... Ng4 $1 {[%emt 0:00:20]} 23. Rxf8+ {[%emt 0:00:45]} (23. Kh1 {was called for.} g6 24. h3 Nf2+ 25. Rxf2 Rxf2 26. Nf1) 23... Rxf8 {[%emt 0:00:00]} 24. Rxe5 {[%emt 0:00:01]} Qxe5 {[%emt 0:00:04]} 25. c3 {[%emt 0:00:06] Against Qd4+} h5 {[%emt 0:00:40]} ({Wrong is} 25... Qf6 $2 26. Qe1 $19) 26. Qe1 {[%emt 0:00:08]} h4 {[%emt 0:01:00]} 27. Nf1 {[%emt 0:00:03] [#]} h3 {[%emt 0:00:00]} 28. Qxe5 {[%emt 0:00:05]} (28. gxh3 {keeps fighting.} Qxe1 29. Bxe1) 28... Nxe5 {[%emt 0:00:02]} 29. Be2 {[%emt 0:00:01]} Bg4 {[%emt 0:00:13]} 30. Bxg4 {[%emt 0:00:03]} (30. Ba6 {is the only way for White.}) 30... Nxg4 {[%emt 0:00:00]} 31. gxh3 {[%emt 0:00:00][%mdl 4096] Endgame KRN-KBN} Ne5 {[%emt 0:00:11][%cal Bg4e5,Be5d3,Bd3f4][%mdl 32] aiming for ...Nf3+.} 32. Be3 {[%emt 0:00:05]} a6 {[%emt 0:00:06]} 33. Kg2 {[%emt 0:00:08]} Nd3 {[%emt 0:00:07]} 34. Nd2 {[%emt 0:00:06]} Nf4+ {[%emt 0:00:38]} 35. Kf1 {[%emt 0:00:05]} Ne6+ {[%emt 0:00:40]} 36. Ke2 {[%emt 0:00:05]} Rf5 {[%emt 0:00:00]} 37. h4 {[%emt 0:00:03]} (37. Nf3 $142) 37... Kf7 {[%emt 0:00:04]} 38. Nf3 {[%emt 0:00:02]} Ke7 {[%emt 0:00:09]} 39. h3 {[%emt 0:00:06]} (39. Bf2 $142) 39... Kd6 {[%emt 0:00:07]} 40. Ng5 $2 {[%emt 0:00:01]} (40. Ba7 {is tougher.}) 40... Nxg5 {[%emt 0:00:25]} 41. hxg5 {[%emt 0:00:01] KR-KB} g6 {[%emt 0:00:01]} 42. h4 {[%emt 0:00:04]} (42. Bd4 $142) 42... Ke5 {[%emt 0:00:02]} 43. Bd2 {[%emt 0:00:06]} Ke4 {[%emt 0:00:04]} 44. Be1 {[%emt 0:00:04]} Rf3 {[%emt 0:00:04]} 45. Bd2 {[%emt 0:00:03]} Rh3 {[%emt 0:00:03]} 46. Be1 {[%emt 0:00:02]} Rh2+ {[%emt 0:00:01]} 47. Kf1 {[%emt 0:00:03]} Kf3 {[%emt 0:00:02][%cal Rh2h1] Black mates.} 48. Kg1 {[%emt 0:00:00]} Re2 {[%emt 0:00:06]} 49. Kf1 {[%emt 0:00:01]} Rg2 {[%emt 0:00:09] Weighted Error Value: White=0.66/Black=0.19 (very precise)} 0-1

[Event "AI Cup Div-2 2023"]
[Site "Online"]
[Date "2023.09.26"]
[Round "2.2"]
[White "Keymer, Vincent"]
[Black "Fedoseev, Vladimir"]
[Result "1-0"]
[ECO "D31"]
[WhiteElo "2717"]
[BlackElo "2683"]
[Annotator "TA"]
[PlyCount "141"]
[EventDate "2023.09.18"]
[EventType "k.o."]
[EventCountry "NET"]
[SourceTitle "playchess.com"]
[Source "ChessBase"]
[SourceQuality "1"]
[TimeControl "900+3"]

{[%evp 13,141,8,12,12,12,9,15,8,9,9,27,25,20,5,12,0,0,0,9,10,10,12,9,16,8,15,10,0,12,24,42,47,70,80,101,0,0,-232,-226,-267,-195,-195,-125,-90,279,314,306,310,302,297,281,99,804,557,570,560,520,566,563,564,558,537,555,536,527,520,512,512,512,512,1941,1902,1756,1605,2034,1839,29985,4767,3887,3097,4175,3844,3204,1893,3236,2637,2178,0,1699,1613,5627,3258,1919,1783,6287,6204,3939,3683,2190,909,1927,697,29983,29982,29984,29984,29987,29988,29988,29982,29987,29986,29987,29987,29992,29988,29990,29989,29994,29989,29990,29989,29990,29991,29991,29992,29992,29993,29994,29994]} 1. c4 {[%emt 0:00:03]} e6 {[%emt 0:00:15]} 2. Nc3 {[%emt 0:00:03]} d5 {[%emt 0:00:01]} 3. d4 {[%emt 0:00:00]} Be7 {[%emt 0:00:27]} 4. cxd5 {[%emt 0:00:08]} exd5 {[%emt 0:00:03]} 5. Bf4 {[%emt 0:00:00]} c6 {[%emt 0:00:02]} 6. e3 {[%emt 0:00:02]} Bf5 {[%emt 0:00:09]} 7. Nge2 {[%emt 0:00:51]} Nf6 {[%emt 0:00:09]} 8. Ng3 {[%emt 0:00:10] D31: Queen's Gambit Declined: Semi-Slav without ...Nf6 (+ Marshall Gambit and Noteboom) and Exchange Variation lines without ...Nf6.} Bg6 {[%emt 0:00:01]} 9. h4 {[%emt 0:00:40]} h5 {[%emt 0:00:06]} 10. Bd3 {[%emt 0:00:02] The position is equal.} Bxd3 {[%emt 0:00:03]} 11. Qxd3 {[%emt 0:00:00]} g6 {[%emt 0:00:01] Prevents Nf5.} 12. O-O-O {[%emt 0:01:01]} Na6 {[%emt 0:02:56]} 13. f3 {[%emt 0:01:04] [#]} Bd6 $146 {[%emt 0:00:55]} ({Predecessor:} 13... Qd7 14. Kb1 O-O 15. Be5 Qe6 16. a3 Nc5 17. Qc2 Ncd7 18. Bf4 Bd6 19. Rh3 Kg7 20. Bxd6 Qxd6 {1-0 Wang,Y (2723)-Xu,Y (2527) Shenzhen Celebrity 6th rapid 2016 (3)}) 14. Nge2 {[%emt 0:00:12]} Bxf4 {[%emt 0:00:01]} 15. Nxf4 {[%emt 0:00:00]} Qd6 {[%emt 0:00:04]} 16. g3 {[%emt 0:00:26]} O-O-O {[%emt 0:00:04]} 17. Rhe1 {[%emt 0:01:02]} Rhe8 {[%emt 0:00:05]} 18. e4 {[%emt 0:02:11]} dxe4 {[%emt 0:00:03]} 19. fxe4 {[%emt 0:00:00] And now e5 would win.} Ng4 {[%emt 0:00:01]} (19... Nb4 20. Qc4 Qf8 21. a3 $16) 20. Qc4 {[%emt 0:00:03]} (20. e5 {is interesting.} Qb4 21. a3 Qb3 22. Ne4) 20... Qd7 {[%emt 0:02:23]} 21. e5 {[%emt 0:00:23]} Kb8 {[%emt 0:00:08]} 22. Ne4 {[%emt 0:02:35]} Nc7 {[%emt 0:01:01]} 23. Nd6 $36 {[%emt 0:00:34][%cal Od6f7][%mdl 2048] White is in control.} Re7 {[%emt 0:00:12][%cal Oc7d5]} 24. Kb1 {[%emt 0:00:19] White is much more active.} (24. Qb3 $16 {[%csl Gd6][%cal Rb3b7]} b6 25. a3) 24... Ne8 $1 $11 {[%emt 0:00:26]} 25. Nxf7 {[%emt 0:00:20]} Qf5+ $1 $19 {[%emt 0:00:03]} (25... Rxf7 26. e6 Qc7 27. exf7 $18) 26. Ka1 {[%emt 0:00:21]} Rxf7 {[%emt 0:00:11]} 27. Ne6 {[%emt 0:00:30]} Rdd7 {[%emt 0:00:19]} (27... Rc8 $19 {Strongly threatening ...Re7.} 28. Rf1 Qxf1 {[%mdl 64] Decoy} 29. Rxf1 Ne3 30. Rxf7 Nxc4) 28. Nc5 $17 {[%emt 0:00:39]} Rde7 {[%emt 0:00:24][%mdl 8192] [#]} (28... Rd5 $17 {...Qc8 would be deadly.} 29. Rf1 Qxf1 {[%mdl 64] Decoy} 30. Rxf1 Ne3 31. Rxf7 (31. Na6+ $2 Kc8 $19) 31... Nxc4 32. Rxb7+ Kc8) 29. e6 $1 $18 {[%emt 0:00:34]} Rg7 {[%emt 0:01:14] aiming for ...Nef6.} 30. d5 {[%emt 0:00:01] Threatens to win with dxc6.} Nd6 {[%emt 0:01:11]} 31. Qb4 {[%emt 0:00:03]} a5 {[%emt 0:01:07] [#]} (31... cxd5 $2 32. Na6+ Kc8 33. Qxd6 bxa6 34. Rc1+ Rc7 35. e7 $18) 32. Qxa5 {[%emt 0:00:25]} (32. Na6+ $1 $18 {and the rest is easy.} Ka7 33. Qxd6) 32... cxd5 $2 {[%emt 0:00:30][%mdl 8192]} (32... Nc4 $16 33. Nd7+ (33. Qd8+ Ka7 $11) 33... Rxd7 34. exd7 Qxd7) 33. Rxd5 {[%emt 0:00:07]} Qxd5 {[%emt 0:00:29]} 34. Nd7+ {[%emt 0:00:01][%mdl 64] Discovered Attack} Rxd7 {[%emt 0:00:01]} 35. Qxd5 {[%emt 0:00:01]} Rge7 {[%emt 0:00:01]} 36. Rd1 {[%emt 0:00:59]} (36. exd7 $2 {gets mated.} Rxe1+) 36... Rd8 {[%emt 0:00:23]} 37. Qg5 {[%emt 0:00:17][%csl LRe7,LRg6] Inhibits Ne3.} Ree8 {[%emt 0:00:01]} 38. a3 {[%emt 0:00:23]} ({Weaker is} 38. Qxg6 Ne5 39. Qh6 (39. Qxh5 Rxe6 40. g4 Nec4 $16) 39... Nc6 $18) (38. e7 Rd7 $16) 38... Nf2 {[%emt 0:00:25]} 39. Rd4 {[%emt 0:00:21]} Nfe4 {[%emt 0:00:30]} 40. Qxg6 {[%emt 0:00:01]} Rc8 {[%emt 0:00:02]} 41. Rxe4 {[%emt 0:00:07]} Rg8 {[%emt 0:00:05]} (41... Nxe4 $142 42. Qxe4 Rc7) 42. Qxh5 {[%emt 0:00:03]} Nxe4 {[%emt 0:00:06]} 43. Qe5+ {[%emt 0:00:01]} Ka8 {[%emt 0:00:02]} 44. Qxe4 {[%emt 0:00:00]} Rxg3 {[%emt 0:00:05][%mdl 4096] Endgame KQ-KRR} 45. e7 {[%emt 0:00:02]} (45. Qa4+ $142 Kb8 46. Qf4+ Ka7 47. Qxg3 Kb6 48. Qe3+ Kb5 49. Qe5+ Kb6 50. e7) 45... Rgg8 {[%emt 0:00:01]} 46. h5 {[%emt 0:00:01][%cal Bh4h5,Bh5h6][%mdl 32]} Rce8 {[%emt 0:00:05]} 47. h6 {[%emt 0:00:04]} Kb8 {[%emt 0:00:01]} 48. h7 {[%emt 0:00:11]} Rh8 {[%emt 0:00:01]} 49. Qe5+ {[%emt 0:00:02]} Kc8 {[%emt 0:00:02]} 50. Qe4 $2 {[%emt 0:00:03]} (50. Ka2 $18 Kd7 51. Kb3) 50... Kc7 $2 {[%emt 0:00:04][%mdl 8192]} (50... Kb8 $11 51. Qe5+ Kc8 52. Qf5+ Kc7) 51. Ka2 {[%emt 0:00:01]} b6 {[%emt 0:00:10]} 52. a4 {[%emt 0:00:01] Black must now prevent Qe6.} Kd6 {[%emt 0:00:06] Repels Qe6+} 53. Ka3 {[%emt 0:00:01]} Kc7 {[%emt 0:00:12]} 54. Kb4 {[%emt 0:00:02] Qe6 would kill now.} Ra8 {[%emt 0:00:03]} 55. b3 {[%emt 0:00:08] White wants to mate with Qe6.} Kd6 {[%emt 0:00:05] Inhibits Qe6+.} 56. Kb5 {[%emt 0:00:04]} (56. Kc3 $142 Rhe8 57. Kd4) 56... Rhb8 {[%emt 0:00:02]} 57. b4 {[%emt 0:00:04]} (57. Kc4 $142 Re8 58. Kd4) 57... Kd7 {[%emt 0:00:04]} 58. Qe5 {[%emt 0:00:03] White mates.} Re8 {[%emt 0:00:09]} 59. Kxb6 {[%emt 0:00:02]} Rab8+ {[%emt 0:00:05]} 60. Kc5 {[%emt 0:00:02]} Rbc8+ {[%emt 0:00:01]} 61. Kd4 {[%emt 0:00:03]} Ra8 {[%emt 0:00:04]} 62. a5 {[%emt 0:00:01][%cal Ba4a5,Ba5a6][%mdl 32]} Rh8 {[%emt 0:00:03]} 63. b5 {[%emt 0:00:02][%cal Bb4b5,Bb5b6,Bb6b7][%mdl 32]} Rae8 {[%emt 0:00:04]} 64. a6 {[%emt 0:00:02]} Ra8 {[%emt 0:00:03]} 65. Kc5 {[%emt 0:00:02]} Rhc8+ {[%emt 0:00:02]} 66. Kb4 {[%emt 0:00:01]} Rcb8 {[%emt 0:00:00]} 67. Ka5 {[%emt 0:00:02]} Rc8 {[%emt 0:00:03]} 68. b6 {[%emt 0:00:03]} Re8 {[%emt 0:00:03]} 69. b7 {[%emt 0:00:02]} Rab8 {[%emt 0:00:01]} 70. Kb6 {[%emt 0:00:01]} Rh8 {[%emt 0:00:05]} 71. a7 {[%emt 0:00:02] Ingenious play by Keymer!   Weighted Error Value: White=0.39/Black=0.40} 1-0

[Event "AI Cup Div-2 2023"]
[Site "Online"]
[Date "2023.09.26"]
[Round "2.2"]
[White "Artemiev, Vladislav"]
[Black "Duda, Jan-Krzysztof"]
[Result "0-1"]
[ECO "A14"]
[WhiteElo "2697"]
[BlackElo "2726"]
[Annotator "TA"]
[PlyCount "48"]
[EventDate "2023.09.18"]
[EventType "k.o."]
[EventCountry "NET"]
[SourceTitle "playchess.com"]
[Source "ChessBase"]
[SourceQuality "1"]
[TimeControl "900+3"]

{[%evp 20,48,15,0,24,7,0,10,18,0,0,0,0,0,0,0,12,0,0,0,0,0,0,0,0,-87,-53,-62,-56,-83,-81]} 1. c4 {[%emt 0:00:20]} Nf6 {[%emt 0:00:07]} 2. Nf3 {[%emt 0:00:31]} e6 {[%emt 0:00:02]} 3. b3 {[%emt 0:00:24]} d5 {[%emt 0:00:05]} 4. Bb2 {[%emt 0:00:02]} Be7 {[%emt 0:00:01]} 5. g3 {[%emt 0:00:05]} O-O {[%emt 0:00:02]} 6. Bg2 {[%emt 0:00:02]} c5 {[%emt 0:00:02]} 7. cxd5 {[%emt 0:00:55]} Nxd5 {[%emt 0:00:00]} 8. O-O {[%emt 0:03:40]} Nc6 {[%emt 0:00:03]} 9. d4 {[%emt 0:00:30]} cxd4 {[%emt 0:00:00]} 10. Nxd4 {[%emt 0:00:01]} Nxd4 {[%emt 0:00:02]} 11. Bxd4 {[%emt 0:00:04]} Bd7 {[%emt 0:00:09] A14: English Opening: 1...e6 with b3 by White.} 12. Nd2 {[%emt 0:00:07]} Rc8 $5 {[%emt 0:00:23][%mdl 4] Leaves trodden paths.} 13. Nc4 {[%emt 0:00:24] [#]} Bc6 $146 {[%emt 0:01:19] The position is equal.} ({Predecessor:} 13... Bb5 14. Rc1 Bg5 15. e3 b6 16. Qh5 g6 17. Qf3 Bf6 18. Rfd1 Bxd4 19. Rxd4 Qe7 {½-½ Abergel,T (2457)-Delorme,A (2514) FRA-chT Top 12 2017 (11.7)}) 14. Bxa7 {[%emt 0:02:32]} (14. a4 {simplifies} b6 15. e3 Nf6 16. Rc1) 14... Nc3 {[%emt 0:00:29]} 15. Qxd8 {[%emt 0:00:13]} Nxe2+ {[%emt 0:00:06]} 16. Kh1 {[%emt 0:00:02]} Rfxd8 {[%emt 0:00:48]} 17. Bb6 {[%emt 0:01:25] [#] Bxc6 is the strong threat.} Bxg2+ {[%emt 0:01:16]} 18. Kxg2 {[%emt 0:00:02]} Rd5 {[%emt 0:00:00]} 19. Rfe1 {[%emt 0:01:50]} Bf6 {[%emt 0:00:28]} 20. Rad1 {[%emt 0:01:01] aiming for Rxd5.} Nc3 {[%emt 0:00:03][%csl LRa2,LRd1]} 21. Rxd5 {[%emt 0:00:01]} Nxd5 {[%emt 0:00:00]} 22. Be3 {[%emt 0:01:05] [#]} (22. Ba5 $11) 22... b5 $1 $17 {[%emt 0:00:06] Black is more active.} 23. Nd6 {[%emt 0:00:01][%csl LRb5,LRc8]} Rc2 {[%emt 0:01:03] ...Bc3 would be deadly.} 24. Nxb5 {[%emt 0:00:03]} Rxa2 {[%emt 0:00:06] Weighted Error Value: White=0.18 (very precise) /Black=0.02 (flawless)} 0-1

[Event "AI Cup Div-2 2023"]
[Site "Online"]
[Date "2023.09.26"]
[Round "2.2"]
[White "Sarana, Alexey"]
[Black "Caruana, Fabiano"]
[Result "1/2-1/2"]
[ECO "E56"]
[WhiteElo "2693"]
[BlackElo "2786"]
[Annotator "TA"]
[PlyCount "149"]
[EventDate "2023.09.18"]
[EventType "k.o."]
[EventCountry "NET"]
[SourceTitle "playchess.com"]
[Source "ChessBase"]
[SourceQuality "1"]
[TimeControl "900+3"]

{[%evp 18,149,0,7,20,8,4,15,13,-11,39,16,30,33,27,36,31,24,36,36,37,24,31,22,40,29,28,9,27,0,0,0,0,-9,20,20,17,19,18,20,20,30,42,-173,-144,-393,-389,-400,-383,-373,-216,-222,-198,-218,-220,-220,-85,-75,-55,-111,-62,-154,-72,-103,-69,-67,-70,-68,-26,-114,-128,-133,0,-26,-33,-108,-104,-107,-103,-77,-84,-5265,-5265,-2170,-5254,-5254,-371,-365,-360,-29970,-29969,-29971,-29968,-5397,-666,-441,0,0,0,0,0,0,0,0,0,0,0,0,0,0,0,0,0,0,0,0,0,0,0,0,0,0,0,0,0,0,0,0,0,0,0,0,0,0]} 1. d4 {[%emt 0:00:04]} Nf6 {[%emt 0:00:05]} 2. c4 {[%emt 0:00:01]} e6 {[%emt 0:00:01]} 3. Nc3 {[%emt 0:00:02]} Bb4 {[%emt 0:00:01]} 4. e3 {[%emt 0:00:01]} O-O {[%emt 0:00:03]} 5. Bd3 {[%emt 0:00:00]} d5 {[%emt 0:00:00]} 6. Nf3 {[%emt 0:00:03]} dxc4 {[%emt 0:00:44]} 7. Bxc4 {[%emt 0:00:00]} c5 {[%emt 0:00:01]} 8. O-O {[%emt 0:00:04]} Nc6 {[%emt 0:00:13]} 9. a3 {[%emt 0:00:06]} Ba5 {[%emt 0:00:03]} 10. Qd3 {[%emt 0:00:02]} h6 {[%emt 0:00:24] E56: Nimzo-Indian: Rubinstein: Main Line: 7...Nc6.} 11. Ne4 {[%emt 0:00:31]} cxd4 {[%emt 0:00:16]} 12. exd4 {[%emt 0:00:05]} Bb6 {[%emt 0:00:20][%cal Rc6d4]} 13. Rd1 {[%emt 0:00:23]} Nd5 {[%emt 0:00:40]} (13... e5 $11) 14. Ba2 {[%emt 0:01:09]} Bc7 {[%emt 0:01:20]} 15. Bd2 {[%emt 0:00:55]} b6 {[%emt 0:00:12]} 16. Rac1 {[%emt 0:00:12]} Bb7 {[%emt 0:00:03]} 17. Bb1 {[%emt 0:00:00]} f5 {[%emt 0:00:06]} 18. Nc3 {[%emt 0:00:18]} Nce7 {[%emt 0:00:13]} 19. Re1 {[%emt 0:00:15]} Rf6 {[%emt 0:00:05]} 20. Ba2 {[%emt 0:01:23] [#]} a6 $146 {[%emt 0:00:34]} ({Predecessor:} 20... Nxc3 21. Rxc3 Nd5 22. Rcc1 Qd7 23. Bc4 a6 24. Ne5 Bxe5 25. Rxe5 Rg6 26. g3 a5 27. Rce1 Rf8 {½-½ Schmid,P (2522)-Biedermann,T (2485) USA A email ICCF email 2019}) 21. Re2 {[%emt 0:00:24]} Qd7 {[%emt 0:00:10]} 22. Rce1 {[%emt 0:00:02]} Rd8 {[%emt 0:00:39]} 23. Bc1 {[%emt 0:01:55]} Kh8 {[%emt 0:00:21]} 24. Bd2 {[%emt 0:00:36]} b5 {[%emt 0:00:18]} 25. Ne5 {[%emt 0:00:06]} Qe8 {[%emt 0:00:09]} 26. Qh3 {[%emt 0:00:14]} Bxe5 {[%emt 0:00:30]} 27. Rxe5 {[%emt 0:00:00]} Qg6 {[%emt 0:00:37] Wards off Bg5} 28. Ne2 {[%emt 0:00:14]} Kg8 {[%emt 0:02:06]} 29. Bb4 {[%emt 0:00:32]} (29. Ba5 {simplifies} Rd6 30. Qg3 Qf7 31. f3) 29... Nxb4 {[%emt 0:01:02]} 30. Nf4 $2 {[%emt 0:01:21]} (30. axb4 $14 {is the one way to stay ahead.} Nd5 31. Bxd5 Bxd5 32. Nf4) 30... Bxg2 $1 $19 {[%emt 0:02:25]} (30... Nxa2 31. Nxg6 Rxg6 32. Rxe6 Bxg2 33. Qh4 $11) 31. Qh4 {[%emt 0:02:07]} (31. Nxg6 $17 Bxh3 32. Nxe7+ (32. axb4 $2 Rxg6+ 33. Kh1 Bg2+ 34. Kg1 Bd5+ {[%mdl 64] Discovered Attack} 35. Kf1 Bxa2 $19) 32... Kf8 33. axb4 Rxd4 34. R5e3 (34. Rxe6 $2 Rxe6 35. Bxe6 Rg4+ 36. Kh1 Bg2+ 37. Kg1 Be4+ 38. Kf1 Bd3+ {[%mdl 64] Discovered Attack} 39. Re2 Kxe7 $19) 34... Rg4+ 35. Rg3 Kxe7 36. f4) 31... Nxa2 {[%emt 0:00:16]} 32. Nxg6 {[%emt 0:00:06]} Nxg6 {[%emt 0:00:00]} 33. Qg3 {[%emt 0:00:04]} Bd5 {[%emt 0:00:02]} (33... Nxe5 34. dxe5 (34. Kxg2 $2 Rg6 $19) 34... f4 35. Qxg2 $18) (33... Be4 $142 34. R1xe4 fxe4 35. Rxe4 Rc8) 34. Rxd5 {[%emt 0:00:56]} Rxd5 {[%emt 0:00:06]} ({Inferior is} 34... exd5 35. Qb3 $15) 35. Rd1 {[%emt 0:00:15]} Kh7 {[%emt 0:00:53] Threatens to win with ...e5.} 36. Qb3 {[%emt 0:00:05] [#]} Nh4 {[%emt 0:00:14]} 37. Qxa2 $17 {[%emt 0:00:53]} Nf3+ {[%emt 0:00:09]} 38. Kh1 {[%emt 0:00:00] [#]} (38. Kg2 $15 Nxd4 39. a4) 38... Nxd4 {[%emt 0:00:06]} (38... Rg6 $1 $17 39. Qb3 Nxd4) 39. Kg2 {[%emt 0:00:23]} (39. b4 $15) 39... Rd8 {[%emt 0:00:29]} ({Black should try} 39... Rg6+ 40. Kf1 Rg4) 40. a4 {[%emt 0:00:21]} e5 {[%emt 0:00:05]} (40... Rg6+ {is interesting.} 41. Kf1 bxa4 42. Qxa4 e5) 41. axb5 {[%emt 0:00:00]} axb5 {[%emt 0:00:01]} 42. Kf1 {[%emt 0:00:15]} e4 {[%emt 0:00:31]} (42... Rc8 $5 {[%cal Rd4f3]} 43. Qd5 Rg6 $15) 43. Qa7 {[%emt 0:00:12]} (43. h4 $1 $11 {keeps the balance.}) 43... Nc6 {[%emt 0:00:05]} 44. Qa1 {[%emt 0:00:01] [#]} Nd4 {[%emt 0:00:15]} (44... Re8 $1 $17 {White must now prevent ...f4.} 45. Qa6 Re5) 45. Qa7 $11 {[%emt 0:00:01]} Rfd6 {[%emt 0:00:05] aiming for ...f4.} 46. Qf7 {[%emt 0:00:33]} (46. Qe7 $1 $15) 46... R6d7 $17 {[%emt 0:00:03]} 47. Qa2 {[%emt 0:00:02]} Nf3 {[%emt 0:00:05][%csl LRd1,LRh2]} 48. Rxd7 {[%emt 0:00:01]} Rxd7 {[%emt 0:00:00][%mdl 4096] Endgame KQ-KRN} 49. h4 $2 {[%emt 0:00:09][%mdl 8192]} Rd1+ $19 {[%emt 0:00:04]} ({Weaker is} 49... Nxh4 50. Qb3 $15) 50. Kg2 {[%emt 0:00:01]} Rg1+ {[%emt 0:00:06]} 51. Kh3 {[%emt 0:00:00]} Rg4 $2 {[%emt 0:00:05]} (51... Rh1+ 52. Kg2 Rh2+ 53. Kg3 Rxh4) 52. h5 {[%emt 0:00:05]} Rh4+ {[%emt 0:00:07]} 53. Kg3 $2 {[%emt 0:00:01]} (53. Kg2 $19) 53... f4+ {[%emt 0:00:03]} (53... Rxh5 $2 {loses.} 54. b4 $19) 54. Kg2 {[%emt 0:00:01]} Rxh5 {[%emt 0:00:02]} 55. Qa8 {[%emt 0:00:06]} Re5 {[%emt 0:00:04]} (55... Rh2+ $142 56. Kf1 Rh1+ 57. Kg2 Rg1+ 58. Kh3 Rg6) 56. Kf1 {[%emt 0:00:06]} g5 $2 {[%emt 0:00:05]} (56... Nh2+ $19 57. Ke1 h5) 57. Qc6 $11 {[%emt 0:00:04] The position is equal.} Kg7 {[%emt 0:00:01]} 58. b4 {[%emt 0:00:02]} h5 {[%emt 0:00:03]} 59. Qd7+ $1 {[%emt 0:00:01]} Kg6 {[%emt 0:00:02]} 60. Qd6+ {[%emt 0:00:00]} Kf5 {[%emt 0:00:03] ...Kg4 would be deadly.} 61. Qd7+ {[%emt 0:00:01]} Kf6 {[%emt 0:00:00]} 62. Qd8+ {[%emt 0:00:02]} Kg6 {[%emt 0:00:04]} 63. Qd6+ {[%emt 0:00:02]} Kf7 {[%emt 0:00:03]} (63... Kf5 $5 {[%cal Rf5g4]} 64. Qd7+ Kg6 $11) 64. Qd7+ {[%emt 0:00:00]} Kf6 {[%emt 0:00:01]} 65. Qd8+ {[%emt 0:00:03]} Ke6 {[%emt 0:00:01]} 66. Qe8+ {[%emt 0:00:05]} Kd6 {[%emt 0:00:01]} 67. Qd8+ {[%emt 0:00:03]} Kc6 {[%emt 0:00:03]} 68. Qa8+ {[%emt 0:00:01]} Kc7 {[%emt 0:00:03]} 69. Qa7+ {[%emt 0:00:01]} Kd6 {[%emt 0:00:01]} 70. Qb6+ {[%emt 0:00:00]} Ke7 {[%emt 0:00:02]} 71. Qc7+ {[%emt 0:00:01]} Ke6 {[%emt 0:00:03]} 72. Qc6+ {[%emt 0:00:01]} Ke7 {[%emt 0:00:07]} 73. Qc7+ {[%emt 0:00:01]} Ke6 {[%emt 0:00:00]} 74. Qc6+ {[%emt 0:00:01]} Ke7 {[%emt 0:00:01]} 75. Qc7+ {[%emt 0:00:00] White happily takes the draw.   Weighted Error Value: White=0.42/Black=0.47} 1/2-1/2